Cogmind - Beta 14 @@@ ROGUE MODE // 2024.11.18 @ 04:02:35 Player: Calasmeer Result: Destroyed by G-67 Veteran with Field Laser Performance ------------- Evolutions (1) 500 Regions Visited (6) 1200 Robots Destroyed (74) 370 Value Destroyed (1355) 1355 Prototype IDs (3) 60 Alien Tech Used (0) 0 Bonus (1049) 1049 TOTAL SCORE: 4534 Bonus ------- High Alert Combat Kills 99 Follower Combat Kills 383 Met Imprinter 300 Was Imprinted 300 Friendly Fire -33 Cogmind --------- Core Integrity 0/400 Matter 300/300 Energy 100/100 System Corruption 0% Temperature Cool (21) Movement Core (700) Ox13 Location -6/Proximity Caves Parts ------- > --- POWER (1) -------- (None) > --- PROPULSION (3) --- (None) > --- UTILITY (3) ------ High-capacity Storage Unit > --- WEAPON (2) ------- (None) > --- INVENTORY (20) --- Light Ion Engine Fission Core Light Treads Light Treads Light Treads Light Treads Improved Treads Makeshift Leg High-capacity Storage Unit Medium Matter Pod (100) Improved Terrain Scanner Seismic Detector Makeshift Cloaking Device Improved Light Armor Plating Makeshift Light Armor Plating Mobile Refinery Mk. CCLXVII Heavy Rocket Launcher CR-A16's Pointy Stick Peak State ------------ > --- POWER ------------ Light Ion Engine > --- PROPULSION ------- Wheel Wheel Compact Wheel > --- UTILITY ---------- High-capacity Storage Unit Structural Scanner Mobile Refinery Mk. CCLXVII > --- WEAPON ----------- Ion Cannon Ion Cannon > --- INVENTORY -------- Light Treads Light Treads Light Treads Light Treads Improved Treads Makeshift Leg Wheel Wheel High-capacity Storage Unit Medium Matter Pod Improved Terrain Scanner Seismic Detector Seismic Detector Makeshift Light Armor Plating Rocket Launcher Heavy Rocket Launcher CR-A16's Pointy Stick [Rating: 21] Favorites ----------- Power Light Ion Engine Engine Light Ion Engine Propulsion Compact Wheel Treads Light Treads Leg Carbon-fiber Leg Wheel Compact Wheel Utility High-capacity Storage Unit Device Structural Scanner Storage High-capacity Storage Unit Protection Light Armor Plating Weapon Ion Cannon Energy Gun Small Laser Energy Cannon Ion Cannon Ballistic Gun Assault Rifle Ballistic Cannon Light Cannon Launcher Rocket Launcher Build | -11 -10 -10 -9 -9 -7 -6 ------- Run | Yrd Mat Min Mat Min Zio Pro Slots Evolved 2 | . . . 2 . . . Power . | . . . . . . . Propulsion 1 | . . . 1 . . . Utility 1 | . . . 1 . . . Weapon . | . . . . . . . Parts Attached 54 | 7 10 . 28 2 2 5 Power 4 | 1 . . 2 . . 1 Engine 4 | 1 . . 2 . . 1 Core . | . . . . . . . Reactor . | . . . . . . . Propulsion 27 | 2 7 . 14 2 . 2 Treads 5 | . 2 . 3 . . . Leg 4 | . . . 4 . . . Wheel 18 | 2 5 . 7 2 . 2 Hover . | . . . . . . . Flight . | . . . . . . . Utility 8 | 1 2 . 3 . 2 . Device 5 | . 1 . 2 . 2 . Storage 2 | 1 1 . . . . . Processor . | . . . . . . . Hackware . | . . . . . . . Protection 1 | . . . 1 . . . Artifact . | . . . . . . . Weapon 15 | 3 1 . 9 . . 2 Energy Gun 1 | 1 . . . . . . Energy Cannon 2 | . . . 2 . . . Ballistic Gun 3 | 2 . . 1 . . . Ballistic Cannon 4 | . 1 . 3 . . . Launcher 5 | . . . 3 . . 2 Special Weapon . | . . . . . . . Impact Weapon . | . . . . . . . Slashing Weapon . | . . . . . . . Piercing Weapon . | . . . . . . . Special Melee Weapon . | . . . . . . . Unidentified Prototypes 1 | . . . . . 1 . Parts Lost 16 | . . . 7 . . 9 Power 2 | . . . 2 . . . Propulsion 8 | . . . 3 . . 5 Utility 2 | . . . 1 . . 1 Weapon 4 | . . . 1 . . 3 Highest Loss Streak 3 | . . . 3 . . 3 To Critical Strikes . | . . . . . . . Average Slot Usage (%) 93 | . 87 100 91 93 100 81 Engine 11 | . 14 14 10 11 11 10 Wheel 28 | . 27 28 28 26 33 26 Device 15 | . 1 14 12 22 22 18 Storage 11 | . 14 14 11 11 11 11 Protection 1 | . . . 4 . . . Energy Gun 5 | . 14 14 6 . . . Energy Cannon 10 | . . . 5 22 22 12 Ballistic Cannon 5 | . 7 14 9 . . . Peak Build Rating 21 | 6 7 8 18 15 21 19 Average Rating 12 | 5 6 7 11 14 15 15 On Entrance 9 | . 6 7 8 13 15 16 Naked Turns . | . . . . . . . Heaviest Build 58 | 11 52 48 57 57 57 58 Greatest Support 63 | 32 40 32 63 36 36 36 Greatest Overweight (x) 16 | 2 1 1 3 3 1 16 Average Overweight (x) 1 | . . 1 . 1 1 1 Largest Inventory Capacity 20 | 8 20 20 20 20 20 20 Average Capacity 18 | 7 10 20 20 20 20 20 Most Carried 20 | 5 9 14 20 20 20 20 Average Carried 15 | 2 7 11 16 18 17 18 Final Capacity 20 | 8 20 20 20 20 20 20 Final Carried 20 | 5 9 14 17 20 17 18 Class Distribution -------------------- 50% | Scavenger-Mutant 49% | Mutant Dominant Class ---------------- Mutant | -10/Materials Mutant | -10/Mines Mutant | -9/Materials Scavenger-Mutant | -9/Mines Scavenger-Mutant | -7/Zion Scavenger-Mutant | -6/Proximity Caves Resources | -11 -10 -10 -9 -9 -7 -6 ----------- Run | Yrd Mat Min Mat Min Zio Pro Matter Collected 1413 | 143 258 126 728 20 20 118 Remotely . | . . . . . . . Salvage Created 2176 | 68 342 173 1265 123 . 205 Parts 154 | 4 19 11 92 16 . 12 Haulers Intercepted 1 | . 1 . . . . . Recyclers Shooed 4 | 1 . 1 2 . . . Parts Field Recycled . | . . . . . . . Retrieved Matter . | . . . . . . . Parts Self-Destructed 23 | . . . . . . 23 Prevented . | . . . . . . . Kills | -11 -10 -10 -9 -9 -7 -6 ------- Run | Yrd Mat Min Mat Min Zio Pro Combat Hostiles Destroyed 38 | . 5 . 26 . . 7 Guns 8 | . 4 . 4 . . . Cannons 21 | . 1 . 16 . . 4 AOE 9 | . . . 6 . . 3 Classes Destroyed 10 | 1 5 . 2 1 . 1 Worker 17 | . 3 3 6 5 . . Tunneler 2 | . . . . 2 . . Hauler 1 | . 1 . . . . . Recycler 8 | 1 1 2 4 . . . Operator 2 | . . . 2 . . . Watcher 6 | . 1 . 5 . . . Swarmer 17 | . 3 . 9 . . 5 Grunt 14 | . 2 . 11 . . 1 Sentry 6 | . . . 6 . . . Hunter 1 | . . . . . . 1 Best Kill Streak 8 | 1 5 2 8 2 . 3 Combat Bots Only 5 | . 3 . 5 . . 3 Max Kills in Single Turn 2 | 1 1 1 2 1 . 2 Gunslinging . | . . . . . . . Exploded 2 | . . . 2 . . 2 Melee . | . . . . . . . Uniques/NPCs Destroyed . | . . . . . . . Combat | -11 -10 -10 -9 -9 -7 -6 -------- Run | Yrd Mat Min Mat Min Zio Pro Hostile Shots Fired 191 | . 31 2 96 . . 62 Missed 59 | . 11 . 28 . . 20 Damage Taken 1931 | . 179 50 815 . . 887 Core 513 | . 69 35 168 . . 241 Absorbed by Shields . | . . . . . . . Core Remaining (%) 79 | 100 . 58 . . . . Volleys Fired 162 | 3 40 9 79 10 1 20 Largest 2 | 2 2 2 2 2 2 2 Hottest 120 | 60 75 75 120 120 120 120 Shots Fired 293 | 6 80 18 134 20 2 33 Gun 105 | 6 59 9 31 . . . Cannon 170 | . 21 9 93 20 2 25 Launcher 18 | . . . 10 . . 8 Special . | . . . . . . . Kinetic 113 | 3 40 9 61 . . . Thermal 162 | 3 40 9 63 20 2 25 Explosive 18 | . . . 10 . . 8 Electromagnetic . | . . . . . . . Robot Hit Streak 10 | 3 6 10 8 9 . 7 Robot Miss Streak 6 | 1 4 3 6 3 . 2 Penetration Max . | . . . . . . . Secondary Targets . | . . . . . . . Shots Hit Robots 167 | 4 43 13 76 14 . 17 Core Hits 91 | 2 15 5 49 7 . 13 Critical Kills . | . . . . . . . Critical Parts Destroyed . | . . . . . . . Critical Strikes 4 | . 1 1 2 . . . Blast 4 | . 1 1 2 . . . Melee Attacks . | . . . . . . . Impact . | . . . . . . . Slashing . | . . . . . . . Piercing . | . . . . . . . Sneak Attacks . | . . . . . . . Combat Hostiles . | . . . . . . . Follow-up Attacks . | . . . . . . . Damage Inflicted 3965 | 46 587 193 2025 323 . 791 Guns 763 | 46 411 66 240 . . . Cannons 2131 | . 176 127 1131 323 . 374 Explosions 1071 | . . . 654 . . 417 Melee . | . . . . . . . Ramming . | . . . . . . . Kinetic 1080 | 35 293 127 625 . . . Thermal 1814 | 11 294 66 746 323 . 374 Explosive 1071 | . . . 654 . . 417 Electromagnetic . | . . . . . . . Impact . | . . . . . . . Slashing . | . . . . . . . Piercing . | . . . . . . . Highest Corruption 1 | . 1 1 . . . . Average Corruption 1 | . 1 1 . . . . Corruption Purged . | . . . . . . . Corruption Blocked . | . . . . . . . Effects 3 | . 1 2 . . . . Message Errors 1 | . . 1 . . . . Data Loss (minor) 2 | . 1 1 . . . . Overload Shots . | . . . . . . . Overflow Damage 66 | . . 6 52 . . 8 Projectiles 6 | . . 6 . . . . Explosions 60 | . . . 52 . . 8 Melee . | . . . . . . . Knockbacks 6 | . 3 1 2 . . . Impact . | . . . . . . . Kinetic 6 | . 3 1 2 . . . Secondary . | . . . . . . . Self-Inflicted Damage 121 | . . . 40 . . 81 Shots 4 | . . . 1 . . 3 Rammed . | . . . . . . . Targets Rammed . | . . . . . . . Kicked . | . . . . . . . Crushed . | . . . . . . . Highest Temperature 198 | 20 130 75 198 102 51 157 Average Temperature 46 | 20 41 28 48 38 27 61 Received Heat Transfer 411 | . 36 18 204 . . 153 Siege Activations . | . . . . . . . Robots Corrupted . | . . . . . . . Combat Hostiles . | . . . . . . . Parts Fried . | . . . . . . . Impact Corruptions . | . . . . . . . Robots Melted . | . . . . . . . Combat Hostiles . | . . . . . . . Parts Melted 3 | . . . . 1 . 2 Heat Transferred 3274 | 25 650 150 1339 518 . 592 Parts Sabotaged 2 | . . . . . . 2 Parts Stolen . | . . . . . . . Parts Stripped . | . . . . . . . Power Chain Reactions . | . . . . . . . Alert | -11 -10 -10 -9 -9 -7 -6 ------- Run | Yrd Mat Min Mat Min Zio Pro Peak Influence 641 | 5 227 129 641 287 . . Initial 249 | . 3 16 1 249 . . Average 181 | 1 97 42 272 238 . . Maximum Alert Level 2 | . 1 . 2 1 . . Low Security (%) 56 | 100 78 100 40 15 . . Level 1 30 | . 21 . 28 84 . . Level 2 13 | . . . 31 . . . Level 3 . | . . . . . . . Level 4 . | . . . . . . . Level 5 . | . . . . . . . High Security . | . . . . . . . Max Security . | . . . . . . . Squads Dispatched 7 | . 3 . 3 . . 1 Investigation 1 | . 1 . . . . . Extermination . | . . . . . . . Reinforcement 5 | . 2 . 3 . . . Assault 1 | . . . . . . 1 Garrison . | . . . . . . . Intercept . | . . . . . . . Searches Triggered . | . . . . . . . Construction Impeded . | . . . . . . . Haulers Reinforced . | . . . . . . . Active Scanning Responses . | . . . . . . . Cargo Convoy Interrupts . | . . . . . . . Stealth | -11 -10 -10 -9 -9 -7 -6 --------- Run | Yrd Mat Min Mat Min Zio Pro Distress Signals 1 | . . . 1 . . . Communications Jammed . | . . . . . . . Distress Signals . | . . . . . . . Times Spotted 87 | . 15 3 43 . . 26 Peak Tracking Total 11 | . 4 2 5 . . 11 Tactical Retreats 5 | . 3 . 2 . . . Traps | -11 -10 -10 -9 -9 -7 -6 ------- Run | Yrd Mat Min Mat Min Zio Pro Traps Triggered 2 | . 2 . . . . . Indirectly . | . . . . . . . Trap Hack Attempts . | . . . . . . . Triggered . | . . . . . . . Disarmed . | . . . . . . . Reprogrammed . | . . . . . . . Reused . | . . . . . . . Traps Extracted . | . . . . . . . Installed . | . . . . . . . Triggered . | . . . . . . . Machines | -11 -10 -10 -9 -9 -7 -6 ---------- Run | Yrd Mat Min Mat Min Zio Pro Machines Disabled 5 | . . . 5 . . . Max in Single Turn 2 | . . . 2 . . . Machines Repaired . | . . . . . . . Machines Dismantled . | . . . . . . . Machines Sabotaged . | . . . . . . . Overloaded Fab Kills . | . . . . . . . Hacking | -11 -10 -10 -9 -9 -7 -6 --------- Run | Yrd Mat Min Mat Min Zio Pro Machines Accessed 7 | . 3 . 4 . . . Terminals 6 | . 3 . 3 . . . Fabricators . | . . . . . . . Repair Stations . | . . . . . . . Recycling Units . | . . . . . . . Scanalyzers 1 | . . . 1 . . . Garrison Access . | . . . . . . . Total Hacks 11 | . 4 . 7 . . . Successful 8 | . 4 . 4 . . . Failed 3 | . . . 3 . . . Catastrophic . | . . . . . . . Database Lockouts . | . . . . . . . Manual 5 | . 2 . 3 . . . Terminals 9 | . 4 . 5 . . . Fabricators . | . . . . . . . Repair Stations . | . . . . . . . Recycling Units . | . . . . . . . Scanalyzers 2 | . . . 2 . . . Garrison Access . | . . . . . . . Terminal Hacks 2 | . 2 . . . . . Prototype ID Bank 1 | . 1 . . . . . Recycling Unit Index 1 | . 1 . . . . . Fabricator Hacks . | . . . . . . . Repair Station Hacks . | . . . . . . . Recycling Unit Hacks . | . . . . . . . Scanalyzer 2 | . . . 2 . . . Insert Component 1 | . . . 1 . . . Analyze 1 | . . . 1 . . . Garrison Access Hacks . | . . . . . . . Unauthorized Hacks 4 | . 2 . 2 . . . Terminals 4 | . 2 . 2 . . . Botnet 4 | . 2 . 2 . . . Fabricators . | . . . . . . . Repair Stations . | . . . . . . . Recycling Units . | . . . . . . . Scanalyzers . | . . . . . . . Garrison Access . | . . . . . . . Data Cores Recovered 2 | . . . 2 . . . Used 1 | . . . 1 . . . Hacking Detections 3 | . 1 . 2 . . . Full Trace Events . | . . . . . . . Feedback Events . | . . . . . . . Feedback Blocked . | . . . . . . . Robot Schematics Acquired 2 | . . . . . 2 . Robots Built . | . . . . . . . Authchips . | . . . . . . . Time . | . . . . . . . Total Robot Build Rating . | . . . . . . . Part Schematics Acquired 16 | . . . 1 . 15 . Parts Built . | . . . . . . . Authchips . | . . . . . . . Time . | . . . . . . . Total Part Build Rating . | . . . . . . . Parts Repaired . | . . . . . . . Time . | . . . . . . . Parts Recycled . | . . . . . . . Recycled Matter . | . . . . . . . Retrieved Matter . | . . . . . . . Retrieved Components . | . . . . . . . Parts Scanalyzed 1 | . . . 1 . . . Part Schematics Acquired 1 | . . . 1 . . . Parts Damaged . | . . . . . . . Bothacking | -11 -10 -10 -9 -9 -7 -6 ------------ Run | Yrd Mat Min Mat Min Zio Pro Used RIF Installer . | . . . . . . . Robots Hacked . | . . . . . . . Non-combat . | . . . . . . . Combat . | . . . . . . . Robot Hacks Applied . | . . . . . . . Relay Couplers Released . | . . . . . . . Fabnet Peak Effective % . | . . . . . . . Robots Rewired . | . . . . . . . Allies Hacked . | . . . . . . . Hacks Repelled . | . . . . . . . Allies | -11 -10 -10 -9 -9 -7 -6 -------- Run | Yrd Mat Min Mat Min Zio Pro Total Allies 6 | . . 2 . . 4 . Largest Group 4 | . . 2 1 . 4 4 Highest-Rated Group 154 | . . 42 31 . 154 154 Highest-Rated Ally 40 | . . 31 31 . 40 40 Total Orders . | . . . . . . . Ally Attacks 60 | . . 11 . . . 49 Total Damage 1419 | . . 210 . . . 1209 Kills 12 | . . 3 . . . 9 Allies Corrupted . | . . . . . . . Allies Melted . | . . . . . . . Intel | -11 -10 -10 -9 -9 -7 -6 ------- Run | Yrd Mat Min Mat Min Zio Pro Robot Analysis Total . | . . . . . . . Derelict Logs Recovered 4 | . . 1 . 2 1 . Drone Launches . | . . . . . . . Drone Recoveries . | . . . . . . . Exploration | -11 -10 -10 -9 -9 -7 -6 ------------- Run | Yrd Mat Min Mat Min Zio Pro Turns Passed 4020 | 80 465 525 1095 473 877 505 Spaces Moved 3000 | 57 291 417 660 386 801 388 Core 7 | 6 . . . . . 1 Treads 12 | . 1 . 11 . . . Legs 21 | . . . 21 . . . Wheels 2960 | 51 290 417 628 386 801 387 Hover . | . . . . . . . Flight . | . . . . . . . Fastest Speed 50 | 50 90 115 100 101 101 95 Average Speed 108 | 99 99 115 115 110 101 110 Slowest Speed 850 | 150 160 115 330 145 101 850 Overloaded Moves . | . . . . . . . Propulsion Burnouts . | . . . . . . . Robots Hopped . | . . . . . . . Cave-ins Triggered . | . . . . . . . Exploration Rate (%) 65 | 4 49 92 68 89 90 66 Regions Visited 6 Branch Regions 4 Pre-discovered Areas 2 | . . . . 2 . . Known Exits Taken . | . . . . . . . Unknown Exits Taken 6 | 1 1 1 1 1 1 . Scrap Searched 6 | . . 1 . 1 3 1 Spaces Dug 1 | . . . 1 . . . Terrain Destroyed 146 | . . . 64 3 . 79 Melee . | . . . . . . . Projectile 11 | . . . 8 3 . . AOE 135 | . . . 56 . . 79 Terrain Rammed . | . . . . . . . Walls Destroyed . | . . . . . . . Machines Disabled . | . . . . . . . Actions | -11 -10 -10 -9 -9 -7 -6 --------- Run | Yrd Mat Min Mat Min Zio Pro Total 3472 | 71 382 444 854 410 872 439 Wait 200 | . 35 14 64 10 55 22 Move 2994 | 56 290 416 659 385 800 388 Hop . | . . . . . . . Pick Up 35 | 5 4 5 11 3 4 3 Fast Attach 18 | 6 2 . 7 2 1 . Attach 15 | . . . 10 . 1 4 Detach 6 | . . . 3 . 2 1 Swap 21 | 1 8 . 11 . . 1 Drop 21 | . 3 . 10 . 8 . Fire 162 | 3 40 9 79 10 1 20 Melee . | . . . . . . . Ram . | . . . . . . . Kick . | . . . . . . . Crush . | . . . . . . . Escape Stasis . | . . . . . . . Rewire . | . . . . . . . Trap . | . . . . . . . Miscellaneous . | . . . . . . . Route ------- -11/Scrapyard -10/Materials -10/Mines (discovered 3 exits: *Mat x2 / [*Exi]) -9/Materials (discovered 4 exits: *Mat x3 / [*Min]) -9/Mines (discovered 3 exits: *Mat x2 / [*Zio]) -7/Zion -6/Proximity Caves (discovered 1 exit: [*Fac]) History --------- Turn | Location | Event 17 | -11/Scrapyard | Discovered new exit (range 15) 81 | -11/Scrapyard | Entered Materials 111 | -10/Materials | Discovered new exit (range 14) 330 | -10/Materials | Build established: Mutant 546 | -10/Materials | Entered Mines 596 | -10/Mines | Deemed a non-threat by the Exiles lab entrance 596 | -10/Mines | Discovered new exit (range 5) 692 | -10/Mines | Learned 2 Materials zone layouts 781 | -10/Mines | Joined a pair of Derelicts in attacking an 0b10 outpost 927 | -10/Mines | Received a Rocket Launcher from a helpful Derelict 995 | -10/Mines | Discovered new exit (range 5) 1015 | -10/Mines | Discovered new exit (range 5) 1071 | -10/Mines | Entered Materials 1071 | -9/Materials | Accompanied by 1 ally 1071 | -9/Materials | Evolved 2 slots: Propulsion x1, Utility x1 1072 | -9/Materials | Identified exit to Materials 1076 | -9/Materials | Led the pair of lost Derelicts to an unsafe place 1799 | -9/Materials | Discovered exit to Materials (range 10) 1951 | -9/Materials | Build established: Scavenger-Mutant 2007 | -9/Materials | Discovered exit to Materials (range 3) 2107 | -9/Materials | Lost 3 parts (1p1n1w) 2146 | -9/Materials | Discovered new exit (range 9) 2166 | -9/Materials | Entered Mines 2203 | -9/Mines | Found a hidden stash of uninstalled traps 2268 | -9/Mines | Discovered exit to Materials (range 8) 2292 | -9/Mines | Discovered exit to Materials (range 14) 2625 | -9/Mines | Learned location of Zion (-7) 2635 | -9/Mines | A Derelict revealed a hidden shortcut to a safe place 2639 | -9/Mines | Entered Zion 2702 | -7/Zion | Learned location of 1 exit from Lower Caves 2895 | -7/Zion | Found CR-A16's Pointy Stick 2998 | -7/Zion | Given A8's code to call for help 3049 | -7/Zion | Met Imprinter 3065 | -7/Zion | Imprinted 3067 | -7/Zion | Declared Zion's savior 3222 | -7/Zion | Found Prototype Device 3222 | -7/Zion | Identified Mobile Refinery Mk. CCLXVII 3453 | -7/Zion | Discovered new exit (range 9) 3516 | -7/Zion | Entered Proximity Caves 3516 | -6/Proximity Caves | Accompanied by 4 allies 3694 | -6/Proximity Caves | Core integrity fell below 50% 3749 | -6/Proximity Caves | Attracted the attention of an 0b10 checkpoint 3882 | -6/Proximity Caves | Lost 3 parts (1n1u1w) 3995 | -6/Proximity Caves | Discovered new exit (range 6) 4015 | -6/Proximity Caves | Attracted the attention of an 0b10 outpost 4017 | -6/Proximity Caves | Core integrity fell below 20% 4021 | -6/Proximity Caves | Destroyed by G-67 Veteran with Field Laser Last Messages --------------- 04016_ S-27 Virus destroyed. 04016_ Wheel destroyed. 04016_ WT-T37(M) destroyed. 04016_ Penetrated by Slug. 04017_ Acquired 65 matter. 04019_ Y-64 Sentinel: "REQUESTING BACKUP." 04019_ C-30 ARC bursts open, deploying its payload. 04019_ G-67 Veteran unfolds itself. 04019_ G-50 Soldier unfolds itself. 04019_ B-48 Gladiator unfolds itself. 04019_ G-50 Soldier unfolds itself. 04019_ E-15 Imp unfolds itself. 04019_ Wheel destroyed. 04019_ Imp. Deuterium Engine blown off. 04019_ Structural Scanner blown off. 04019_ E-15 Imp destroyed. 04020_ SN-LC0(M) destroyed. 04021_ S-27 Virus destroyed. 04021_ Slug penetrates Wall. Map ----- +----------------------------------------------------+ | ?????????????????????????????????????????????? | | ?????????????????????????????????????????????? | | ?????????????????????????????????????????????? | | ?????????????????????????????????????????????? | | ?????????????????????????????????????????????? | | ?????????????????????????????????????????????? | | ?????????????????????????????????????????????? | | ?????????????????????????????????????????????? | | ?????????????????????????????????????????????? | | ?????????????????????????????????????????????? | | ?????????????????????????????????????????????? | | ?????????????????????????????????????????????? | | ?????????????????????????????????????????????? | | ????????????## ???????###?###????????????????? | | ????????????## ??????###?###????????????????? | | ????????????# ????### ??????????????? | | ???????????? ??#### ###+###??????????????? | | ????????????? #### # "??????????????? | | ?????????????? ### # ????????????????? | | ??????????????? #" "# ##??????????? | | ????????????????? #" #### ##??????????? | | ?????????????????## #" g # ##??????????? | | ?????????????????### #" g# Y ##??????????? | | ### ??????????????## ###%[g ##??????????? | | ### ????????###???### !%=*=%$ ##??????????? | | ????????####???### g@!% ;#####??????????? | | ??????? ##???#### bg;#;######??????????? | | ##?????? ##????### g#######?????????????? | | ##?????? ######### #######??????????????? | | ##?????? ######### ######???????????????? | | ###????? #### ###???????????????? | | ####???? ### ##???????????????? | | ###????? ### ### ##???????????????? | | ##????# ### ### ###???????????????? | | ###??### #### ### ######???????????????? | | ######## ##### #########????????????????? | | ## ###### ###### ######???????????????????? | | ### #### # #####???????????????????? | | ### ######??????????????????? | | ?### # ###??????????????????? | | ########## ###?????????????????? | | ######### # # ###?????????????????? | | ##?????## # ##?????????????????? | | ##?????## ###?????????????????? | | ###?????## ####???????????????? | | ###????### ### ####???????????????? | | ##?????## #### ##???????????????? | | ???????### ##### # ###???????????????? | | ???????############### #######???????????????? | | ????????######?##############????????????????? | +----------------------------------------------------+ Best States ------------- Heat Dissipation 28 Energy Generation 16 Energy Capacity 290 Matter Stores 300 Matter Capacity 300 Sight Range 16 Terrain Scan Density 10 Armor Coverage 150 Evasion (%) 42 Recoil Reduction 3 Item Schematics ----------------- Hcp. Storage Unit | -9/Materials | Scanalyzed Great Axe | -7/Zion | Archive Hpw. Shock Rifle | -7/Zion | Archive Lyr. Light Armor Plating | -7/Zion | Archive Imp. Reaction Control System | -7/Zion | Archive Launcher Guidance Computer | -7/Zion | Archive Proton Cannon | -7/Zion | Archive Matter Filter | -7/Zion | Archive Arm. Medium Treads | -7/Zion | Archive Imp. Corruption Screen | -7/Zion | Archive System Restoration Module | -7/Zion | Archive Drone Bay | -7/Zion | Archive Imp. Field Recycling Unit | -7/Zion | Archive Imp. Particle Charger | -7/Zion | Archive Hvy. Pick | -7/Zion | Archive Gauss Cannon | -7/Zion | Archive Robot Schematics ------------------ L-41 Fighter | -7/Zion | Archive L-61 Swordsman | -7/Zion | Archive Fabricated ------------ Nothing Alien Tech Used ----------------- None Achievements -------------- None Challenges ------------ None Game ------ Seed RemoteScanDrivehammer Manual? 0 Play Time 00:28:23 Cumulative 30.1 hours Start 2024.11.18 @ 03:35:21 End 2024.11.18 @ 04:02:35 Sessions 1 Manual Loads 0 Difficulty Rogue Special Mode None Game No. 31 Rogue 30 Adventurer 0 Explorer 1 Win Type - Total 0 Types 0/0/0/0/0/0/0/0/0 Lore% 34 Gallery% 33 Achievement% 27 Wizard Run 0 Options --------- Layout 2 ASCII 0 Keyboard 0 Movement Mouse Keybinds 0 Fullscreen 2 Font 32/Smallcaps Map View 50x44 Zoom Use 0% Tactical HUD 1 Map Filters NONE Filters NONE Steam 1 RUN: 600b6540-46f4-41e1-a5a9-97be3a0b9344